bitfinex/quotes_BTCUSD_20220111
["timestamp","ask_amount","ask_price","bid_price","bid_amount"]
[1641885770730,0.25785388,42208.0,42203.0,0.06079337]
[1641885771377,0.257,42208.0,42203.0,0.11079337]
[1641885771578,0.25785394,42208.0,42204.0,0.05]
[1641885771780,0.2839052,42208.0,42204.0,0.05154689]
[1641885771978,0.2269052,42208.0,42204.0,0.00154689]
[1641885772579,0.22605126,42208.0,42204.0,0.00154689]
[1641885772779,0.23790521,42208.0,42204.0,0.00154689]
[1641885773781,0.23705126,42208.0,42206.0,0.000588]
[1641885774082,0.37905012,42207.0,42206.0,0.00213489]
[1641885774738,0.39205012,42207.0,42206.0,0.00213489]
[1641885776131,0.37905012,42207.0,42206.0,0.00213489]
[1641885776732,0.39205012,42207.0,42206.0,0.00213489]
[1641885777533,0.02013712,42207.0,42206.0,0.00213489]
[1641885777932,0.00713712,42207.0,42206.0,0.00213489]
[1641885778776,0.02013712,42207.0,42206.0,0.00213489]
[1641885779776,0.12013712,42207.0,42206.0,0.00213489]
[1641885779977,0.10713712,42207.0,42206.0,0.00213489]
[1641885780877,0.113,42207.0,42206.0,0.38138519]
[1641885781080,0.113,42207.0,42206.0,0.43526219]
[1641885781282,0.113,42207.0,42206.0,1.13526219]
[1641885781478,0.00085395,42209.0,42206.0,1.13526219]
[1641885781479,2.75243059,42220.0,42207.0,0.053876]
[1641885781676,2.75243059,42220.0,42207.0,0.00154687]
[1641885781877,0.30193648,42219.0,42213.0,0.66041588]
[1641885782238,0.2,42221.0,42216.0,0.05922998]
[1641885782430,0.371913,42220.0,42216.0,0.00154687]
[1641885782629,0.471913,42220.0,42216.0,0.00154687]
[1641885782830,0.371913,42220.0,42216.0,0.00154687]
[1641885783731,0.371913,42220.0,42218.0,0.11904406]
[1641885784030,0.371913,42220.0,42218.0,0.17059093]
[1641885784231,0.371913,42220.0,42218.0,0.17059091]
[1641885784433,0.571913,42220.0,42218.0,0.17059091]
[1641885784633,0.571913,42220.0,42218.0,0.05212972]
[1641885784833,0.571913,42220.0,42218.0,0.00212972]
[1641885785631,0.625913,42220.0,42218.0,0.00212972]
[1641885786275,0.625913,42220.0,42218.0,0.05212972]
[1641885786876,0.626913,42220.0,42218.0,0.05212972]
[1641885788076,0.571913,42220.0,42218.0,0.11135997]
[1641885788775,0.627913,42220.0,42218.0,0.11135997]
[1641885790028,0.571913,42220.0,42218.0,0.11135997]
[1641885790826,0.627913,42220.0,42218.0,0.11135997]
[1641885792030,0.571913,42220.0,42218.0,0.11135997]
[1641885792228,0.84289208,42220.0,42218.0,0.11135997]
[1641885792534,0.84289208,42220.0,42218.0,0.05212972]
[1641885792929,0.89789208,42220.0,42218.0,0.05212972]
[1641885794283,0.571913,42220.0,42218.0,0.05212972]
[1641885794482,0.571913,42220.0,42218.0,0.11136048]
[1641885794885,0.627913,42220.0,42218.0,0.11136048]
[1641885795485,0.627913,42220.0,42218.0,0.06136043]
[1641885795685,0.93963526,42220.0,42218.0,0.06136043]
[1641885796085,0.88363526,42220.0,42218.0,0.06136043]
[1641885796586,0.88363526,42220.0,42218.0,0.17982172]
[1641885796789,0.93963526,42220.0,42218.0,0.17982172]
[1641885797085,0.93963526,42220.0,42218.0,0.11136043]
[1641885797086,0.627913,42220.0,42218.0,0.11136043]
[1641885797325,0.627913,42220.0,42218.0,0.06136043]
[1641885798028,0.571913,42220.0,42218.0,0.06136043]
[1641885798228,0.91423365,42220.0,42218.0,0.06136041]
[1641885798825,0.97223365,42220.0,42218.0,0.06136041]
[1641885800127,0.91423365,42220.0,42218.0,0.06136041]
[1641885800328,0.47338239,42219.0,42218.0,0.06667769]
[1641885800527,0.39529539,42219.0,42218.0,0.06736599]
[1641885800726,0.39529539,42219.0,42218.0,0.06706456]
[1641885800971,0.45229539,42219.0,42218.0,0.06783597]
[1641885801173,0.45229539,42219.0,42218.0,0.06136041]
[1641885802078,0.39529539,42219.0,42218.0,0.06136041]
[1641885802976,0.45229539,42219.0,42218.0,0.06136041]
[1641885804180,0.39529539,42219.0,42218.0,0.06136041]
[1641885804833,0.45229539,42219.0,42218.0,0.06136039]
[1641885806234,0.39529539,42219.0,42218.0,0.06136039]
[1641885806833,0.45229539,42219.0,42218.0,0.06136039]
[1641885807334,0.99600104,42219.0,42218.0,0.06136039]
[1641885807536,0.99600104,42219.0,42218.0,0.00212963]
[1641885808137,0.93900104,42219.0,42218.0,0.00212963]
[1641885808978,0.99300104,42219.0,42218.0,0.00212963]
[1641885809579,0.64929539,42219.0,42218.0,0.00180158]
[1641885810181,0.59529539,42219.0,42218.0,0.00180158]
[1641885810982,0.64929539,42219.0,42218.0,0.00180158]
[1641885812233,0.59529539,42219.0,42218.0,0.00180158]
[1641885812928,0.64929539,42219.0,42218.0,0.00180158]
[1641885813726,0.64929539,42219.0,42218.0,0.00209682]
[1641885814128,0.59529539,42219.0,42218.0,0.00209682]
[1641885814827,0.64929539,42219.0,42218.0,0.00209682]
[1641885816075,0.59529539,42219.0,42218.0,0.00209682]
[1641885816879,0.64829539,42219.0,42218.0,0.00209682]
[1641885818278,0.59529539,42219.0,42218.0,0.00209682]
[1641885818980,0.65129539,42219.0,42218.0,0.00209682]
[1641885820029,0.65129539,42219.0,42218.0,0.05209682]
[1641885820230,0.59529539,42219.0,42218.0,0.05209682]
[1641885820827,0.64629539,42219.0,42218.0,0.05209682]
[1641885822327,0.59529539,42219.0,42218.0,0.05209682]
[1641885822928,0.64629539,42219.0,42218.0,0.05209682]
[1641885823777,0.64629539,42219.0,42218.0,0.11132852]
[1641885824777,0.59529539,42219.0,42218.0,0.11132852]
[1641885824977,0.64629539,42219.0,42218.0,0.11132852]
[1641885826181,0.59529539,42219.0,42218.0,0.11132852]
[1641885826780,0.59529539,42219.0,42218.0,0.11729521]
[1641885826980,0.64929539,42219.0,42218.0,0.11729521]
[1641885827625,0.64929539,42219.0,42218.0,0.06132852]
[1641885827824,0.64929539,42219.0,42218.0,0.06132848]
[1641885828025,1.06367923,42219.0,42218.0,0.00209678]
[1641885828226,1.10967923,42219.0,42218.0,0.00209678]
[1641885828429,1.16089246,42219.0,42218.0,0.00209678]
[1641885828928,2.17938085,42219.0,42218.0,0.00209678]
[1641885830226,3.42938085,42219.0,42218.0,0.00209678]
[1641885830826,3.12712229,42219.0,42218.0,0.00209678]
[1641885831079,3.13912229,42219.0,42218.0,0.00209678]
[1641885831576,3.08912229,42219.0,42218.0,0.00209678]
[1641885832177,3.07712229,42219.0,42218.0,0.00209678]
[1641885832577,1.74380046,42219.0,42218.0,0.00209678]
[1641885832777,0.48280046,42219.0,42218.0,0.00209678]
[1641885832978,0.49580046,42219.0,42218.0,0.00209678]
[1641885834178,0.48280046,42219.0,42218.0,0.00209678]
[1641885834727,0.83280046,42219.0,42218.0,0.00209678]
[1641885834930,0.84580046,42219.0,42218.0,0.00209678]
[1641885835828,0.49580046,42219.0,42218.0,0.00209678]
[1641885836231,0.53010046,42219.0,42218.0,0.00209678]
[1641885836428,0.419208,42219.0,42218.0,0.00209678]
[1641885837032,0.432208,42219.0,42218.0,0.00209678]
[1641885838234,0.419208,42219.0,42218.0,0.00209678]
[1641885838780,0.669208,42219.0,42218.0,0.00209678]
[1641885838978,0.683208,42219.0,42218.0,0.00209678]
[1641885839177,0.433208,42219.0,42218.0,0.00209678]
[1641885839579,0.633208,42219.0,42218.0,0.00209678]
[1641885840178,0.619208,42219.0,42218.0,0.00209678]
[1641885840378,0.419208,42219.0,42218.0,0.00209678]
[1641885840779,0.469208,42219.0,42218.0,0.00209678]
[1641885840979,0.482208,42219.0,42218.0,0.00209678]
[1641885841781,0.432208,42219.0,42218.0,0.00209678]
[1641885842227,0.419208,42219.0,42218.0,0.00209678]
[1641885842829,0.419208,42219.0,42218.0,0.0579001]
[1641885843026,0.473208,42219.0,42218.0,0.0579001]
[1641885843429,0.473208,42219.0,42218.0,0.50438304]
[1641885844031,0.1013,42219.0,42218.0,0.50438304]
[1641885844229,0.0473,42219.0,42218.0,0.56361463]
[1641885845129,0.1033,42219.0,42218.0,0.56361463]
[1641885845428,0.1033,42219.0,42218.0,0.5640882]
[1641885846276,0.0473,42219.0,42218.0,0.5640882]
[1641885846477,0.0473,42219.0,42218.0,0.56530236]
[1641885846680,0.0473,42219.0,42218.0,0.55781131]
[1641885847079,0.0693,42219.0,42218.0,0.55781131]
[1641885847479,0.022,42219.0,42218.0,0.55781131]
[1641885847679,0.022,42219.0,42218.0,0.56553542]
[1641885847881,0.022,42219.0,42218.0,0.55781131]
[1641885848181,0.0071345,42220.0,42218.0,0.55781131]
[1641885848981,0.0621345,42220.0,42218.0,0.55781131]
[1641885850530,0.0071345,42220.0,42218.0,0.55781131]
[1641885850929,0.0621345,42220.0,42218.0,0.55781131]
[1641885852331,0.00070444,42221.0,42219.0,0.38110068]
[1641885852531,0.00070444,42221.0,42219.0,0.4326472]
[1641885852732,0.00070444,42221.0,42220.0,0.45236438]
[1641885852931,0.065,42228.0,42220.0,0.45391088]
[1641885853130,0.00070443,42222.0,42220.0,0.45391088]
[1641885853331,0.06781731,42228.0,42221.0,0.34347318]
[1641885853578,0.06781731,42228.0,42225.0,0.31791962]
[1641885853777,0.06781731,42228.0,42225.0,0.3797061]
[1641885853977,0.06781731,42228.0,42225.0,0.4297061]
[1641885854180,0.065,42228.0,42225.0,0.4297061]
[1641885854779,0.065,42228.0,42225.0,0.48892019]
[1641885854978,0.371908,42227.0,42225.0,0.11076057]
[1641885856682,0.40849706,42227.0,42225.0,0.11076057]
[1641885857082,0.40849706,42227.0,42225.0,0.05154645]
[1641885857541,0.40849706,42227.0,42225.0,0.00154645]
[1641885857942,1.53233355,42226.0,42225.0,0.00154645]
[1641885858143,2.15867744,42226.0,42225.0,0.00154645]
[1641885858344,3.51967744,42226.0,42225.0,0.00154642]
[1641885858942,3.99439906,42226.0,42225.0,0.00154642]
[1641885859346,4.11288306,42226.0,42225.0,0.00154642]
[1641885859843,4.71686228,42226.0,42225.0,0.00154642]
[1641885860245,4.70586228,42226.0,42225.0,0.00154642]
[1641885860843,4.75027498,42226.0,42225.0,0.00154642]
[1641885861080,4.76127498,42226.0,42225.0,0.00154642]
[1641885861480,5.49694935,42226.0,42225.0,0.00154642]
[1641885861680,5.59434248,42226.0,42225.0,0.00154642]
[1641885862282,4.97936326,42226.0,42218.0,0.00077435]
[1641885862482,4.97936326,42226.0,42208.0,0.00698162]
[1641885862483,0.0012092,42220.0,42208.0,0.00698162]
[1641885862680,0.03057064,42206.0,42205.0,0.17772296]
[1641885862880,0.07787064,42206.0,42205.0,0.18440173]
[1641885863181,0.07787064,42206.0,42205.0,0.2333401]
[1641885863381,0.07787064,42206.0,42205.0,0.22772296]
[1641885864181,0.07787064,42206.0,42205.0,0.28697711]
[1641885865032,0.08487064,42206.0,42205.0,0.30597711]
[1641885865630,0.35229235,42211.0,42205.0,0.30597711]
[1641885865929,0.0473,42210.0,42205.0,0.30597711]
[1641885866129,0.35310324,42214.0,42205.0,0.30597711]
[1641885866130,0.0473,42209.0,42205.0,0.30597711]
[1641885866329,0.0473,42208.0,42206.0,0.00015236]
[1641885866529,0.0473,42207.0,42206.0,0.00015236]
[1641885867130,0.0513,42207.0,42206.0,0.01015236]
[1641885867335,0.0513,42207.0,42206.0,0.01]
[1641885867731,0.0513,42207.0,42206.0,0.381908]
[1641885867932,1.16488854,42217.0,42206.0,0.381908]
[1641885868132,0.2695013,42214.0,42206.0,0.01]
[1641885868332,0.0473,42213.0,42205.0,0.22772296]
[1641885868787,0.0473,42213.0,42206.0,0.0005552]
[1641885868986,0.0733,42213.0,42206.0,0.0005552]
[1641885869185,0.0733,42213.0,42210.0,0.05923932]
[1641885869387,0.371908,42212.0,42210.0,0.05923932]
[1641885869585,0.0473,42211.0,42210.0,0.05923932]
[1641885869786,0.419208,42211.0,42210.0,0.05923932]
[1641885870188,0.026,42213.0,42210.0,0.05923932]
[1641885870488,0.55183084,42216.0,42211.0,0.16847332]
[1641885870686,0.371908,42215.0,42211.0,0.16847332]
[1641885871087,0.29763991,42216.0,42211.0,0.16847332]
[1641885871389,0.29763991,42216.0,42212.0,0.11847353]
[1641885871390,0.371908,42215.0,42212.0,0.11847353]
[1641885871587,0.29763991,42216.0,42213.0,0.05]
[1641885872331,0.26463991,42216.0,42213.0,0.05]
[1641885872538,0.371908,42215.0,42213.0,0.05]
[1641885873232,0.396908,42215.0,42213.0,0.05]
[1641885873831,0.396908,42215.0,42214.0,0.00779986]
[1641885874231,0.371908,42215.0,42213.0,0.16514586]
[1641885874732,0.371908,42215.0,42213.0,0.0466712]
[1641885874931,0.0473,42214.0,42213.0,0.0466712]
[1641885875134,0.419208,42214.0,42213.0,0.0466712]
[1641885876582,0.059253,42212.0,42208.0,0.11849558]
[1641885876783,0.371908,42211.0,42209.0,0.05]
[1641885877385,0.371908,42211.0,42210.0,0.00712545]
[1641885878284,0.371908,42211.0,42209.0,0.05]
[1641885878483,0.007136,42212.0,42211.0,0.00744052]
[1641885878683,0.007136,42212.0,42210.0,0.00662792]
[1641885878684,0.379044,42212.0,42210.0,0.00662792]
[1641885879086,0.393044,42212.0,42210.0,0.00662792]
[1641885880130,0.393044,42212.0,42211.0,0.00727098]
[1641885880331,0.379044,42212.0,42211.0,0.00621385]
[1641885880529,0.379044,42212.0,42210.0,0.00069186]
[1641885880730,0.007136,42212.0,42210.0,0.00069186]
[1641885881030,0.022136,42212.0,42210.0,0.00069186]
[1641885882430,0.007136,42212.0,42210.0,0.00069186]
[1641885883032,0.021136,42212.0,42210.0,0.00069186]
[1641885884279,0.02050483,42212.0,42210.0,0.00069186]
[1641885884478,0.00650483,42212.0,42210.0,0.00069186]
[1641885885179,0.02050483,42212.0,42210.0,0.00069186]
[1641885886981,0.00650483,42212.0,42210.0,0.00069186]
[1641885887228,0.02050483,42212.0,42210.0,0.00069186]
[1641885888431,0.00650483,42212.0,42210.0,0.00069186]
[1641885889032,0.02050483,42212.0,42210.0,0.00069186]
[1641885890332,0.00650483,42212.0,42210.0,0.00069186]
[1641885890731,0.00650483,42212.0,42210.0,0.00584102]
[1641885890980,0.00650483,42212.0,42210.0,0.00069186]
[1641885891180,0.02050483,42212.0,42210.0,0.00069186]
[1641885891480,0.02050483,42212.0,42210.0,0.00802478]
[1641885891681,0.02050483,42212.0,42211.0,0.00687966]
[1641885891878,0.02050483,42212.0,42211.0,0.00634215]
[1641885892081,0.02050483,42212.0,42210.0,0.00069186]
[1641885892479,0.00650483,42212.0,42210.0,0.00069186]
[1641885893082,0.02050483,42212.0,42210.0,0.00069186]
[1641885893680,0.28832507,42218.0,42210.0,0.00069186]
[1641885893880,0.371908,42217.0,42210.0,0.00069186]
[1641885895136,0.385908,42217.0,42212.0,0.05923746]
[1641885896336,0.371908,42217.0,42212.0,0.05923746]
[1641885897137,0.9878858,42217.0,42212.0,0.05923746]
[1641885898483,0.9758858,42217.0,42212.0,0.05923746]
[1641885898683,0.9708858,42217.0,42215.0,0.11848056]
[1641885899083,0.9828858,42217.0,42215.0,0.16848056]
[1641885899383,0.378908,42217.0,42215.0,0.16848056]
[1641885900383,0.366908,42217.0,42215.0,0.16848056]
[1641885901186,0.378908,42217.0,42215.0,0.16848056]
[1641885902233,0.378908,42217.0,42216.0,0.00727106]
[1641885902433,0.366908,42217.0,42215.0,0.16848056]
[1641885902634,0.366908,42217.0,42216.0,0.00667786]
[1641885902832,0.366908,42217.0,42215.0,0.16848056]
[1641885903034,0.366908,42217.0,42216.0,0.00629469]
[1641885903336,0.12087798,42217.0,42215.0,0.16848056]
[1641885903733,0.06927225,42217.0,42216.0,0.00068866]
[1641885904334,0.05727225,42217.0,42216.0,0.00068866]
[1641885905839,0.18741509,42219.0,42216.0,0.37579442]
[1641885906094,0.18826894,42219.0,42216.0,0.37579442]
[1641885906294,0.00085385,42219.0,42216.0,0.37579442]
[1641885906495,0.08537928,42220.0,42216.0,0.37579442]
[1641885906694,0.70522983,42222.0,42219.0,0.31929137]
[1641885906896,0.97438906,42227.0,42220.0,0.36856662]
[1641885907093,0.03658906,42227.0,42220.0,0.36856662]
[1641885907394,0.03658906,42227.0,42221.0,0.34455167]
[1641885907594,0.77022983,42228.0,42221.0,0.41869167]
[1641885907794,0.065,42228.0,42221.0,0.41869167]
[1641885908794,0.065,42228.0,42222.0,0.00068544]
[1641885910444,0.065,42228.0,42223.0,0.05921872]
[1641885910646,0.00085377,42227.0,42223.0,0.06025454]
[1641885910846,0.00798714,42227.0,42223.0,0.06025454]
[1641885911246,0.00798714,42227.0,42223.0,0.06325454]
[1641885911647,0.00713337,42227.0,42223.0,0.06325454]
[1641885912047,0.00798714,42227.0,42223.0,0.11325454]
[1641885912448,0.00798714,42227.0,42223.0,0.06025454]
[1641885912648,0.00798714,42227.0,42224.0,0.05]
[1641885912847,0.00713337,42227.0,42224.0,0.08064448]
[1641885913049,0.00713337,42227.0,42224.0,0.03064448]
[1641885913350,0.00713337,42227.0,42225.0,0.0078815]
[1641885913589,0.00713337,42227.0,42226.0,0.00611185]
[1641885913786,0.00713337,42227.0,42226.0,0.00103582]
[1641885917086,0.00213337,42227.0,42226.0,0.00103582]
[1641885918639,0.00213337,42227.0,42226.0,0.00171913]
[1641885918839,0.37404637,42227.0,42226.0,0.00171913]
[1641885919037,0.00213337,42227.0,42226.0,0.00171913]
[1641885919236,0.06713337,42227.0,42226.0,0.00171913]
[1641885920240,0.43904637,42227.0,42226.0,0.00171913]
[1641885920441,0.37404637,42227.0,42226.0,0.00171913]
[1641885921393,0.45104637,42227.0,42226.0,0.00171913]
[1641885921989,0.77633535,42227.0,42226.0,0.00171913]
[1641885922589,0.69933535,42227.0,42226.0,0.00171913]
[1641885923189,0.77433535,42227.0,42226.0,0.00171913]
[1641885924290,0.07713337,42227.0,42226.0,0.00808607]
[1641885924490,0.00213337,42227.0,42226.0,0.00171913]
[1641885924741,0.00213337,42227.0,42226.0,0.00876525]
[1641885924936,0.00213337,42227.0,42226.0,0.00171913]
[1641885925338,0.07713337,42227.0,42226.0,0.00171913]
[1641885926540,0.37404637,42227.0,42226.0,0.00171913]
[1641885927338,0.43404637,42227.0,42226.0,0.00171913]
[1641885928587,0.72036437,42227.0,42226.0,0.00171913]
[1641885929288,0.78036437,42227.0,42226.0,0.00171913]
[1641885929688,0.43404637,42227.0,42226.0,0.00171913]
[1641885930588,0.37404637,42227.0,42226.0,0.00171913]
[1641885931291,0.43804637,42227.0,42226.0,0.00171913]
[1641885932636,0.37404637,42227.0,42226.0,0.00171913]
[1641885932834,0.00213337,42227.0,42226.0,0.00171913]
[1641885933235,0.43704637,42227.0,42226.0,0.00171913]
[1641885933635,0.79659388,42227.0,42226.0,0.00171913]
[1641885934038,0.70705301,42227.0,42226.0,0.00171913]
[1641885934838,0.70705301,42227.0,42226.0,0.00124466]
[1641885935038,0.70705301,42227.0,42226.0,0.00914923]
[1641885935238,0.76905301,42227.0,42226.0,0.00914923]
[1641885935439,0.70605301,42227.0,42226.0,0.00156112]
[1641885935638,0.70605301,42227.0,42226.0,0.00721523]
[1641885935839,0.70605301,42227.0,42226.0,0.00156112]
[1641885936890,0.64405301,42227.0,42226.0,0.00156112]
[1641885937087,1.01693062,42227.0,42226.0,0.00156112]
[1641885937289,1.12623062,42227.0,42226.0,0.00156112]
[1641885937487,1.27623062,42227.0,42226.0,0.00156112]
[1641885938489,2.64096006,42227.0,42226.0,0.00156112]
[1641885939290,2.65196006,42227.0,42226.0,0.00156112]
[1641885939744,2.58996006,42227.0,42226.0,0.00156112]
[1641885940038,2.38996006,42227.0,42226.0,0.00156112]
[1641885940637,2.58996006,42227.0,42226.0,0.00156112]
[1641885940836,2.57896006,42227.0,42226.0,0.00156112]
[1641885941238,2.58996006,42227.0,42226.0,0.00156112]
[1641885942741,2.57896006,42227.0,42226.0,0.00156112]
[1641885943338,2.58996006,42227.0,42226.0,0.00156112]
[1641885944796,2.38996006,42227.0,42226.0,0.00156112]
[1641885945193,2.39096006,42227.0,42226.0,0.00156112]
[1641885945595,1.99439578,42227.0,42226.0,0.00156112]
[1641885946494,1.98239578,42227.0,42226.0,0.00156112]
[1641885947096,2.40282608,42227.0,42226.0,0.00156112]
[1641885947340,2.61482608,42227.0,42226.0,0.00156112]
[1641885947938,2.620738,42227.0,42226.0,0.00156112]
[1641885948538,2.603738,42227.0,42226.0,0.00156112]
[1641885949339,2.615738,42227.0,42226.0,0.00156112]
[1641885950348,2.615738,42227.0,42217.0,0.00121715]
[1641885950349,2.570738,42227.0,42217.0,0.00121715]
[1641885950543,0.001,42215.0,42211.0,0.98692478]
[1641885950740,0.001,42215.0,42211.0,0.69822478]
[1641885950741,0.00813531,42215.0,42211.0,0.69822478]
[1641885951192,0.06737308,42215.0,42211.0,0.69822478]
[1641885951400,0.06737308,42215.0,42211.0,0.70722478]
[1641885951401,0.08537308,42215.0,42211.0,0.70722478]
[1641885951592,0.33823264,42214.0,42211.0,0.009]
[1641885951891,0.03055506,42213.0,42211.0,0.009]
[1641885952493,0.03055506,42213.0,42210.0,0.69822478]
[1641885952891,0.03055506,42213.0,42209.0,0.97010998]
[1641885953090,0.03055506,42213.0,42210.0,0.371913]
[1641885953391,0.03255506,42213.0,42210.0,1.09913778]
[1641885953591,0.002,42213.0,42210.0,1.09913778]
[1641885953791,0.002,42213.0,42212.0,0.00060538]
[1641885954592,0.06737308,42215.0,42212.0,0.00060538]
[1641885955276,0.08437308,42215.0,42212.0,0.00560538]
[1641885956675,0.06737308,42215.0,42212.0,0.00060538]
[1641885957275,0.10137308,42215.0,42212.0,0.00060538]
[1641885958786,0.10137308,42215.0,42214.0,0.0006043]
[1641885958986,0.09423777,42215.0,42214.0,0.0006043]
[1641885959291,0.024,42215.0,42214.0,0.0006043]
[1641885960688,0.001,42215.0,42214.0,0.0006043]
[1641885961590,0.001,42215.0,42214.0,0.0026043]
[1641885962243,0.043,42215.0,42214.0,0.0026043]
[1641885962644,0.043,42215.0,42214.0,0.60430555]
[1641885963242,0.043,42215.0,42214.0,0.3745173]
[1641885963440,0.061,42215.0,42214.0,0.7410519]
[1641885963642,0.019,42215.0,42214.0,1.34075315]
[1641885963841,0.019,42215.0,42214.0,0.97621855]
[1641885964043,0.019,42215.0,42214.0,0.3745173]
[1641885964844,0.001,42215.0,42214.0,1.27684885]
[1641885966486,0.32712495,42219.0,42214.0,0.3725173]
[1641885966685,0.05775041,42219.0,42214.0,0.0006043]
[1641885967485,0.08475041,42219.0,42214.0,0.0036043]
[1641885967687,0.27870138,42217.0,42214.0,0.0036043]
[1641885968587,0.27870138,42217.0,42216.0,0.00067011]
[1641885969187,0.65061438,42217.0,42216.0,0.00067011]
[1641885969388,0.66961438,42217.0,42216.0,0.00067011]
[1641885970639,0.390913,42217.0,42216.0,0.00067011]
[1641885970843,0.371913,42217.0,42216.0,0.00067011]
[1641885971541,0.390913,42217.0,42216.0,0.00067011]
[1641885972541,0.371913,42217.0,42216.0,0.00067011]
[1641885973347,0.394913,42217.0,42216.0,0.00067011]
[1641885974587,0.371913,42217.0,42216.0,0.00067011]
[1641885974788,0.05775041,42219.0,42216.0,0.00067011]
[1641885974988,0.371913,42218.0,42216.0,0.00067011]
[1641885977339,0.399913,42218.0,42216.0,0.00067011]
[1641885977938,0.371913,42218.0,42216.0,0.00067011]
[1641885978538,0.37128191,42218.0,42216.0,0.00067011]
[1641885979238,0.37081204,42218.0,42216.0,0.00067011]
[1641885981294,0.39481204,42218.0,42216.0,0.00167011]
[1641885982690,0.37081204,42218.0,42216.0,0.00067011]
[1641885983291,0.37081204,42218.0,42216.0,0.00167011]
[1641885983491,0.39481204,42218.0,42216.0,0.00167011]
[1641885985440,0.6473,42217.0,42216.0,0.00167011]
[1641885985639,1.019213,42217.0,42216.0,0.00067011]
[1641885986040,1.119213,42217.0,42216.0,0.00067011]
[1641885986442,1.39661439,42217.0,42216.0,0.00067011]
[1641885986639,0.79661439,42217.0,42214.0,0.00077746]
[1641885986838,0.371913,42215.0,42214.0,0.00077746]
[1641885987039,0.469213,42215.0,42214.0,0.00077746]
[1641885987438,0.469213,42215.0,42208.0,0.60081956]
[1641885987439,0.0318543,42209.0,42208.0,0.60081956]
[1641885987639,0.0862913,42209.0,42205.0,0.60081956]
[1641885988698,0.0862913,42209.0,42205.0,0.60159727]
[1641885989497,0.0922913,42209.0,42205.0,0.63059727]
[1641885989698,0.0922913,42209.0,42205.0,0.62981956]
[1641885989898,0.0922913,42209.0,42205.0,0.63059727]
[1641885990599,0.0922913,42209.0,42206.0,0.60081956]
[1641885990902,0.0922913,42209.0,42205.0,0.62981956]
[1641885991098,0.0922913,42209.0,42205.0,0.63059726]
[1641885991299,0.0862913,42209.0,42206.0,0.60081956]
[1641885991898,0.1002913,42209.0,42206.0,0.60081956]
[1641885993848,0.1132913,42209.0,42208.0,0.00059093]
[1641885994049,0.0992913,42209.0,42208.0,0.00059093]
[1641885995649,0.0862913,42209.0,42208.0,0.00059093]
[1641885995851,0.0389913,42209.0,42208.0,0.40059093]
[1641885996896,0.0389913,42209.0,42208.0,0.00059093]
[1641885997994,0.0929913,42209.0,42208.0,0.00459093]
[1641885999093,0.0927913,42209.0,42208.0,0.00459093]
[1641885999293,0.0387913,42209.0,42208.0,0.00059093]
[1641885999744,0.0387913,42209.0,42208.0,0.00117584]
[1641885999939,0.0387913,42209.0,42208.0,0.00617584]
[1641886000440,0.0577913,42209.0,42208.0,0.00617584]
[1641886001939,0.0887913,42209.0,42208.0,0.00717584]
[1641886003340,0.0887913,42209.0,42208.0,0.37908884]
[1641886003341,0.057137,42209.0,42208.0,0.37908884]
[1641886003591,0.057137,42209.0,42208.0,0.75523643]
[1641886003791,0.05,42209.0,42208.0,0.74923643]
[1641886003990,0.2989,42216.0,42208.0,0.75523643]
[1641886004193,0.2989,42216.0,42213.0,0.24291106]
[1641886004392,0.05923527,42217.0,42213.0,0.24349597]
[1641886004994,0.0012331,42218.0,42213.0,0.00058491]
[1641886005691,0.371913,42217.0,42213.0,0.00136238]
[1641886005892,0.371913,42217.0,42213.0,0.00336238]
[1641886006092,0.0332331,42218.0,42213.0,0.00336238]
[1641886006592,0.0332331,42218.0,42213.0,0.00258491]
[1641886006792,0.0332331,42218.0,42213.0,0.00136238]
[1641886007093,0.43114987,42217.0,42213.0,0.00136238]
[1641886007745,0.43114987,42217.0,42213.0,0.00058491]
[1641886007943,0.43114987,42217.0,42213.0,0.0013624]
[1641886008145,0.45214987,42217.0,42213.0,0.0023624]
[1641886008347,0.021,42217.0,42213.0,0.0023624]
[1641886008744,0.021,42217.0,42215.0,0.00058718]
[1641886008946,0.021,42217.0,42215.0,0.00117209]
[1641886009850,0.01327041,42220.0,42215.0,0.00117209]
[1641886010247,0.0124166,42220.0,42219.0,0.3650908]
[1641886010450,0.01327043,42220.0,42219.0,0.36567571]
[1641886010995,0.01327043,42220.0,42219.0,0.73758871]
[1641886011497,0.0124166,42220.0,42219.0,0.73758871]
[1641886011896,0.0124166,42220.0,42219.0,0.37249791]
[1641886012094,0.0124166,42220.0,42219.0,0.77234636]
[1641886012696,0.0124166,42220.0,42219.0,0.77234634]
[1641886013306,0.0124166,42220.0,42219.0,0.00058489]
[1641886013798,0.0124166,42220.0,42219.0,0.00116994]
[1641886014097,0.0124166,42220.0,42219.0,0.00516994]
[1641886016141,0.0124166,42220.0,42219.0,0.00116994]
[1641886016942,0.0074166,42220.0,42219.0,0.00116994]
[1641886018143,0.0074166,42220.0,42219.0,0.00216994]
[1641886020194,0.0074166,42220.0,42219.0,0.00916994]
[1641886020396,0.0074166,42220.0,42219.0,0.00816994]
[1641886020894,0.0074166,42220.0,42219.0,0.38008294]
[1641886021893,0.0074166,42220.0,42219.0,0.37308294]
[1641886022345,0.0074166,42220.0,42219.0,0.38008294]
[1641886024147,0.0074166,42220.0,42219.0,0.76564139]
[1641886024747,0.0074166,42220.0,42219.0,0.75864139]
[1641886025450,0.0074166,42220.0,42219.0,0.75264139]
[1641886026388,0.0074166,42220.0,42219.0,0.75964139]
[1641886027993,0.0074166,42220.0,42219.0,0.75264139]
[1641886028290,0.0074166,42220.0,42219.0,0.76164139]
[1641886028891,0.0074166,42220.0,42219.0,0.76164137]
[1641886029492,0.0074166,42220.0,42219.0,0.75264137]
[1641886030142,0.0074166,42220.0,42219.0,0.76064137]
[1641886031542,0.0074166,42220.0,42219.0,0.75264137]
[1641886032146,0.0074166,42220.0,42219.0,0.76064137]
[1641886032747,0.0074166,42220.0,42219.0,0.38108287]
[1641886033492,0.0074166,42220.0,42219.0,0.37308287]
[1641886034194,0.0074166,42220.0,42219.0,0.38108287]
[1641886034999,0.0074166,42220.0,42219.0,0.00916987]
[1641886035397,0.0074166,42220.0,42219.0,0.00116987]
[1641886035601,0.3793296,42220.0,42219.0,0.00116987]
[1641886036199,0.67420775,42220.0,42219.0,0.00516987]
[1641886037448,0.97420775,42220.0,42219.0,0.00116987]
[1641886037847,0.67420775,42220.0,42219.0,0.00116987]
[1641886038349,0.72420775,42220.0,42219.0,0.00116987]
[1641886044294,0.75120775,42220.0,42219.0,0.00116987]
[1641886045041,0.37929475,42220.0,42219.0,0.00116987]
[1641886045442,0.35229475,42220.0,42219.0,0.00116987]
[1641886046243,0.41829475,42220.0,42219.0,0.00116987]
[1641886047445,0.41829475,42220.0,42212.0,0.10384074]
[1641886047446,0.771913,42219.0,42212.0,0.10384074]